[Event "FIDE U16 Olympiad_boards_81-124"]
[Site "Eindhoven, Netherlands"]
[Date "2023.08.13"]
[Round "1.15"]
[White "Sundac, Ivano"]
[Black "Jiroajvanichakorn, Rathasart"]
[Result "1-0"]
[TimeControl "45min+10sec"]
[WhiteElo "1877"]
[BlackElo "1344"]

1. d4 {[%clk 00:45:18]} {[%emt 00:00:01]} d5 {[%clk 00:45:18]} {[%emt
00:00:03]} 2. c4 {[%clk 00:45:25]} {[%emt 00:00:02]} c6 {[%clk 00:45:21]}
{[%emt 00:00:08]} 3. Nf3 {[%clk 00:45:32]} {[%emt 00:00:02]} Nf6 {[%clk
00:45:29]} {[%emt 00:00:02]} 4. Nc3 {[%clk 00:45:40]} {[%emt 00:00:02]} dxc4
{[%clk 00:45:35]} {[%emt 00:00:05]} 5. a4 {[%clk 00:45:42]} {[%emt 00:00:08]}
Bf5 {[%clk 00:45:20]} {[%emt 00:00:25]} 6. e3 {[%clk 00:45:23]} {[%emt
00:00:29]} e6 {[%clk 00:45:04]} {[%emt 00:00:26]} 7. Bxc4 {[%clk 00:45:28]}
{[%emt 00:00:05]} Bb4 {[%clk 00:44:50]} {[%emt 00:00:24]} 8. Bd2 {[%clk
00:45:16]} {[%emt 00:00:22]} O-O {[%clk 00:44:34]} {[%emt 00:00:26]} 9. O-O
{[%clk 00:45:22]} {[%emt 00:00:04]} Nbd7 {[%clk 00:43:36]} {[%emt 00:01:09]} 10.
Qe2 {[%clk 00:44:32]} {[%emt 00:00:59]} Bg6 {[%clk 00:42:32]} {[%emt 00:01:13]}
11. Rfd1 {[%clk 00:44:03]} {[%emt 00:00:40]} Qc7 {[%clk 00:38:51]} {[%emt
00:03:50]} 12. Rac1 {[%clk 00:43:52]} {[%emt 00:00:20]} Rad8 {[%clk 00:33:01]}
{[%emt 00:06:02]} 13. h3 {[%clk 00:41:42]} {[%emt 00:02:19]} a6 {[%clk
00:30:36]} {[%emt 00:02:36]} 14. Ba2 {[%clk 00:39:50]} {[%emt 00:02:01]} Qa5
{[%clk 00:24:16]} {[%emt 00:06:31]} 15. Bb3 {[%clk 00:35:41]} {[%emt 00:04:18]}
c5 {[%clk 00:21:54]} {[%emt 00:02:33]} 16. Be1 {[%clk 00:31:22]} {[%emt
00:04:28]} cxd4 {[%clk 00:18:51]} {[%emt 00:03:14]} 17. exd4 {[%clk 00:31:21]}
{[%emt 00:00:11]} Nb6 {[%clk 00:17:39]} {[%emt 00:01:22]} 18. Ne5 {[%clk
00:29:22]} {[%emt 00:02:08]} Rfe8 {[%clk 00:14:10]} {[%emt 00:03:40]} 19. Qf3
{[%clk 00:27:03]} {[%emt 00:02:26]} Re7 {[%clk 00:12:20]} {[%emt 00:02:03]} 20.
g4 {[%clk 00:25:02]} {[%emt 00:02:10]} Nfd5 {[%clk 00:10:29]} {[%emt 00:02:02]}
21. h4 {[%clk 00:24:00]} {[%emt 00:01:12]} f6 {[%clk 00:08:42]} {[%emt
00:01:58]} 22. Nxd5 {[%clk 00:21:31]} {[%emt 00:02:38]} exd5 {[%clk 00:08:26]}
{[%emt 00:00:26]} 23. Nxg6 {[%clk 00:21:09]} {[%emt 00:00:32]} hxg6 {[%clk
00:08:15]} {[%emt 00:00:21]} 24. Bc3 {[%clk 00:18:38]} {[%emt 00:02:40]} Nc4
{[%clk 00:05:53]} {[%emt 00:02:33]} 25. Bc2 {[%clk 00:16:03]} {[%emt 00:02:45]}
Bxc3 {[%clk 00:03:56]} {[%emt 00:02:07]} 26. bxc3 {[%clk 00:16:05]} {[%emt
00:00:09]} Nb2 {[%clk 00:03:05]} {[%emt 00:01:00]} 27. Re1 {[%clk 00:15:58]}
{[%emt 00:00:17]} Rde8 {[%clk 00:02:42]} {[%emt 00:00:33]} 28. Rxe7 {[%clk
00:15:42]} {[%emt 00:00:26]} Rxe7 {[%clk 00:02:51]} {[%emt 00:00:02]} 29. Bxg6
{[%clk 00:15:43]} {[%emt 00:00:08]} Nxa4 {[%clk 00:02:18]} {[%emt 00:00:44]} 30.
Qf5 {[%clk 00:15:19]} {[%emt 00:00:32]} Qd8 {[%clk 00:01:49]} {[%emt 00:00:41]}
31. Qh5 {[%clk 00:15:21]} {[%emt 00:00:07]} Re2 {[%clk 00:00:54]} {[%emt
00:01:05]} 32. g5 {[%clk 00:14:49]} {[%emt 00:00:42]} Re4 {[%clk 00:00:34]}
{[%emt 00:00:31]} 33. Qh7+ {[%clk 00:14:48]} {[%emt 00:00:10]} Kf8 {[%clk
00:00:43]} {[%emt 00:00:01]} 34. Qh8+ {[%clk 00:14:56]} {[%emt 00:00:01]} Ke7
{[%clk 00:00:51]} {[%emt 00:00:02]} 35. Qxg7+ {[%clk 00:15:04]} {[%emt
00:00:03]} Kd6 {[%clk 00:00:51]} {[%emt 00:00:10]} 36. Bxe4 {[%clk 00:15:11]}
{[%emt 00:00:03]} dxe4 {[%clk 00:00:58]} {[%emt 00:00:03]} 37. c4 {[%clk
00:15:19]} {[%emt 00:00:02]} fxg5 {[%clk 00:00:47]} {[%emt 00:00:21]} 38. hxg5
{[%clk 00:14:56]} {[%emt 00:00:32]} Qe7 {[%clk 00:00:37]} {[%emt 00:00:21]} 39.
Qg6+ {[%clk 00:14:46]} {[%emt 00:00:19]} Kd7 {[%clk 00:00:39]} {[%emt
00:00:09]} 40. Rb1 {[%clk 00:14:47]} {[%emt 00:00:08]} Kc7 {[%clk 00:00:34]}
{[%emt 00:00:16]} 41. Qf6 {[%clk 00:14:46]} {[%emt 00:00:10]} Qxf6 {[%clk
00:00:35]} {[%emt 00:00:10]} 42. gxf6 {[%clk 00:14:55]} {[%emt 00:00:02]} Nb6
{[%clk 00:00:30]} {[%emt 00:00:14]} 43. Rxb6 {[%clk 00:15:01]} {[%emt
00:00:04]} 1-0

[Event "FIDE U16 Olympiad_boards_81-124"]
[Site "Eindhoven, Netherlands"]
[Date "2023.08.13"]
[Round "1.16"]
[White "Bootsumran, Sirin"]
[Black "Begic, Klara"]
[Result "0-1"]
[TimeControl "45min+10sec"]
[WhiteElo "1265"]
[BlackElo "1812"]

1. e4 {[%clk 00:45:17]} {[%emt 00:00:02]} e6 {[%clk 00:45:17]} {[%emt
00:00:04]} 2. Nf3 {[%clk 00:45:22]} {[%emt 00:00:05]} d5 {[%clk 00:45:23]}
{[%emt 00:00:03]} 3. Nc3 {[%clk 00:45:25]} {[%emt 00:00:07]} dxe4 {[%emt
00:00:10]} 4. Nxe4 {[%clk 00:45:33]} Nd7 {[%clk 00:45:32]} {[%emt 00:00:04]} 5.
d4 {[%clk 00:45:36]} {[%emt 00:00:07]} Ngf6 {[%clk 00:45:37]} {[%emt 00:00:04]}
6. Nxf6+ {[%clk 00:45:17]} {[%emt 00:00:30]} Nxf6 {[%clk 00:45:42]} {[%emt
00:00:04]} 7. Bd3 {[%clk 00:45:00]} {[%emt 00:00:28]} Be7 {[%clk 00:44:32]}
{[%emt 00:01:19]} 8. c3 {[%clk 00:43:55]} {[%emt 00:01:15]} O-O {[%clk
00:44:15]} {[%emt 00:00:27]} 9. Qc2 {[%clk 00:43:59]} {[%emt 00:00:06]} b6
{[%clk 00:42:06]} {[%emt 00:02:20]} 10. Bg5 {[%clk 00:41:34]} {[%emt 00:02:36]}
h6 {[%clk 00:42:05]} {[%emt 00:00:10]} 11. Be3 {[%clk 00:41:42]} {[%emt
00:00:01]} Bb7 {[%clk 00:40:51]} {[%emt 00:01:24]} 12. O-O-O {[%clk 00:41:18]}
{[%emt 00:00:34]} a5 {[%clk 00:36:30]} {[%emt 00:04:32]} 13. Nd2 {[%clk
00:38:05]} {[%emt 00:03:22]} Ng4 {[%clk 00:29:35]} {[%emt 00:07:05]} 14. Be4
{[%clk 00:38:01]} {[%emt 00:00:15]} Bxe4 {[%clk 00:29:05]} {[%emt 00:00:40]} 15.
Qxe4 {[%clk 00:36:48]} {[%emt 00:01:22]} Nxe3 {[%clk 00:29:10]} {[%emt
00:00:05]} 16. fxe3 {[%clk 00:36:49]} {[%emt 00:00:09]} b5 {[%clk 00:25:07]}
{[%emt 00:04:13]} 17. Rhf1 {[%clk 00:33:04]} {[%emt 00:03:55]} Ra6 {[%clk
00:21:41]} {[%emt 00:03:36]} 18. Nb3 {[%clk 00:30:59]} {[%emt 00:02:15]} a4
{[%clk 00:19:21]} {[%emt 00:02:31]} 19. Nc5 {[%clk 00:30:43]} {[%emt 00:00:26]}
Bxc5 {[%clk 00:16:00]} {[%emt 00:03:30]} 20. dxc5 {[%clk 00:30:51]} {[%emt
00:00:02]} Qg5 {[%clk 00:14:57]} {[%emt 00:01:14]} 21. Qd4 {[%clk 00:27:56]}
{[%emt 00:03:05]} Rc6 {[%clk 00:14:08]} {[%emt 00:00:58]} 22. Rf3 {[%clk
00:21:40]} {[%emt 00:06:27]} Rxc5 {[%clk 00:12:26]} {[%emt 00:01:51]} 23. Rg3
{[%clk 00:17:49]} {[%emt 00:04:02]} Qe5 {[%clk 00:11:59]} {[%emt 00:00:36]} 24.
Qh4 {[%clk 00:17:40]} {[%emt 00:00:20]} a3 {[%clk 00:10:42]} {[%emt 00:01:27]}
25. Qb4 {[%clk 00:08:56]} {[%emt 00:08:53]} Ra8 {[%clk 00:07:52]} {[%emt
00:03:01]} 26. Rd4 {[%clk 00:06:07]} {[%emt 00:02:59]} axb2+ {[%clk 00:04:09]}
{[%emt 00:03:53]} 27. Kxb2 {[%clk 00:06:02]} {[%emt 00:00:15]} Ra4 {[%clk
00:03:27]} {[%emt 00:00:51]} 28. Rd8+ {[%clk 00:05:51]} {[%emt 00:00:22]} Kh7
{[%clk 00:03:32]} {[%emt 00:00:05]} 29. Qb3 {[%clk 00:05:59]} {[%emt 00:00:01]}
Rac4 {[%clk 00:02:01]} {[%emt 00:01:41]} 30. Qc2+ {[%clk 00:05:37]} {[%emt
00:00:33]} Qf5 {[%clk 00:01:47]} {[%emt 00:00:23]} 31. Qxf5+ {[%clk 00:04:52]}
{[%emt 00:00:55]} Rxf5 {[%clk 00:01:07]} {[%emt 00:00:50]} 32. Rd7 {[%clk
00:04:20]} {[%emt 00:00:43]} g5 {[%clk 00:00:55]} {[%emt 00:00:22]} 33. e4
{[%clk 00:03:26]} {[%emt 00:01:03]} Rf4 {[%clk 00:00:21]} {[%emt 00:00:44]} 34.
e5 {[%clk 00:03:26]} {[%emt 00:00:10]} Kg6 {[%clk 00:00:30]} {[%emt 00:00:02]}
35. Kb3 {[%clk 00:02:49]} {[%emt 00:00:47]} c5 {[%clk 00:00:19]} {[%emt
00:00:20]} 36. Rc7 {[%clk 00:01:29]} {[%emt 00:01:30]} b4 {[%clk 00:00:22]}
{[%emt 00:00:08]} 37. cxb4 {[%clk 00:01:36]} {[%emt 00:00:02]} Rxb4+ {[%clk
00:00:21]} {[%emt 00:00:11]} 38. Kc2 {[%clk 00:01:45]} {[%emt 00:00:02]} Rbc4+
{[%clk 00:00:24]} {[%emt 00:00:08]} 39. Kb3 {[%clk 00:01:25]} {[%emt 00:00:29]}
Rb4+ {[%clk 00:00:18]} {[%emt 00:00:16]} 40. Kc2 {[%clk 00:01:33]} c4 {[%clk
00:00:28]} {[%emt 00:00:01]} 41. Kc3 {[%clk 00:01:42]} {[%emt 00:00:02]} Ra4
{[%clk 00:00:33]} {[%emt 00:00:36]} 0-1

[Event "FIDE U16 Olympiad_boards_81-124"]
[Site "Eindhoven, Netherlands"]
[Date "2023.08.13"]
[Round "1.17"]
[White "Olando, Paul Jnr"]
[Black "Lavrencic, Matic"]
[Result "0-1"]
[TimeControl "45min+10sec"]
[WhiteElo "1381"]
[BlackElo "2220"]

1. e4 {[%clk 00:45:16]} {[%emt 00:00:03]} c5 {[%clk 00:45:09]} {[%emt
00:00:12]} 2. Nf3 {[%clk 00:45:21]} {[%emt 00:00:05]} d6 {[%clk 00:45:07]}
{[%emt 00:00:12]} 3. d4 {[%clk 00:45:28]} {[%emt 00:00:02]} cxd4 {[%clk
00:45:16]} {[%emt 00:00:02]} 4. Nxd4 {[%clk 00:45:36]} {[%emt 00:00:02]} Nf6
{[%clk 00:45:24]} {[%emt 00:00:02]} 5. Nc3 {[%clk 00:45:43]} {[%emt 00:00:02]}
a6 {[%clk 00:45:33]} {[%emt 00:00:02]} 6. Be3 {[%clk 00:45:43]} {[%emt
00:00:09]} e5 {[%clk 00:45:34]} {[%emt 00:00:10]} 7. Nb3 {[%clk 00:45:51]}
{[%emt 00:00:02]} Be6 {[%clk 00:45:37]} {[%emt 00:00:08]} 8. f3 {[%clk
00:45:57]} {[%emt 00:00:03]} h5 {[%clk 00:45:04]} {[%emt 00:00:43]} 9. Be2
{[%clk 00:45:10]} {[%emt 00:00:56]} Nbd7 {[%clk 00:45:02]} {[%emt 00:00:13]} 10.
a4 {[%clk 00:43:04]} {[%emt 00:02:15]} Rc8 {[%clk 00:43:54]} {[%emt 00:01:19]}
11. Qd2 {[%clk 00:40:55]} {[%emt 00:02:19]} Be7 {[%clk 00:43:35]} {[%emt
00:00:29]} 12. Nd5 {[%clk 00:36:34]} {[%emt 00:04:30]} Bxd5 {[%clk 00:43:21]}
{[%emt 00:00:25]} 13. exd5 {[%clk 00:36:40]} {[%emt 00:00:03]} Nb6 {[%clk
00:43:26]} {[%emt 00:00:05]} 14. Bxb6 {[%clk 00:36:05]} {[%emt 00:00:46]} Qxb6
{[%clk 00:43:35]} {[%emt 00:00:02]} 15. a5 {[%clk 00:34:52]} {[%emt 00:01:22]}
Qc7 {[%clk 00:43:43]} {[%emt 00:00:02]} 16. c4 {[%clk 00:31:20]} {[%emt
00:03:42]} O-O {[%clk 00:42:03]} {[%emt 00:01:50]} 17. O-O {[%clk 00:30:04]}
{[%emt 00:01:25]} Nd7 {[%clk 00:38:24]} {[%emt 00:03:51]} 18. Nc1 {[%clk
00:26:14]} {[%emt 00:03:59]} Qd8 {[%clk 00:37:29]} {[%emt 00:01:05]} 19. b4
{[%clk 00:23:08]} {[%emt 00:03:15]} Bg5 {[%clk 00:37:30]} {[%emt 00:00:10]} 20.
Qc3 {[%clk 00:21:53]} {[%emt 00:01:25]} Nf6 {[%clk 00:35:30]} {[%emt 00:02:09]}
21. Qb3 {[%clk 00:18:50]} {[%emt 00:03:13]} h4 {[%clk 00:32:29]} {[%emt
00:03:13]} 22. Bd3 {[%clk 00:15:43]} {[%emt 00:03:15]} Nh5 {[%clk 00:29:59]}
{[%emt 00:02:41]} 23. Bf5 {[%clk 00:14:22]} {[%emt 00:01:30]} Rc7 {[%clk
00:30:07]} {[%emt 00:00:03]} 24. Ne2 {[%clk 00:13:55]} {[%emt 00:00:36]} g6
{[%clk 00:29:36]} {[%emt 00:00:41]} 25. Bg4 {[%clk 00:13:23]} {[%emt 00:00:42]}
Ng7 {[%clk 00:27:39]} {[%emt 00:02:07]} 26. f4 {[%clk 00:13:09]} {[%emt
00:00:24]} exf4 {[%clk 00:27:48]} {[%emt 00:00:02]} 27. Nxf4 {[%clk 00:13:10]}
{[%emt 00:00:09]} Bxf4 {[%clk 00:27:38]} {[%emt 00:00:20]} 28. Rxf4 {[%clk
00:13:16]} {[%emt 00:00:04]} Qg5 {[%clk 00:27:30]} {[%emt 00:00:18]} 29. Raf1
{[%clk 00:13:10]} {[%emt 00:00:15]} f5 {[%clk 00:27:15]} {[%emt 00:00:25]} 30.
Bd1 {[%clk 00:11:59]} {[%emt 00:01:21]} Qf6 {[%clk 00:24:40]} {[%emt 00:02:46]}
31. c5 {[%clk 00:09:02]} {[%emt 00:03:07]} g5 {[%clk 00:24:28]} {[%emt
00:00:22]} 32. Rc4 {[%clk 00:08:41]} {[%emt 00:00:30]} Kh8 {[%clk 00:23:20]}
{[%emt 00:01:19]} 33. Qc3 {[%clk 00:08:02]} {[%emt 00:00:48]} Qxc3 34. Rxc3
{[%clk 00:08:10]} Rfc8 {[%clk 00:22:49]} {[%emt 00:00:19]} 35. Bc2 {[%clk
00:07:35]} {[%emt 00:00:44]} f4 {[%clk 00:22:34]} {[%emt 00:00:25]} 36. Be4
{[%clk 00:07:02]} {[%emt 00:00:43]} Ne8 {[%clk 00:21:22]} {[%emt 00:01:22]} 37.
Bf5 {[%clk 00:06:34]} {[%emt 00:00:37]} Rd8 {[%clk 00:21:31]} {[%emt 00:00:02]}
38. Be6 {[%clk 00:06:01]} {[%emt 00:00:43]} Nf6 {[%clk 00:21:16]} {[%emt
00:00:25]} 39. Rfc1 {[%clk 00:05:53]} {[%emt 00:00:17]} Ne8 {[%clk 00:16:09]}
{[%emt 00:05:18]} 40. c6 {[%clk 00:05:32]} {[%emt 00:00:30]} Rb8 {[%clk
00:15:54]} {[%emt 00:00:26]} 41. cxb7 {[%clk 00:04:17]} {[%emt 00:01:26]} Rcxb7
{[%clk 00:15:28]} {[%emt 00:00:36]} 42. Rc6 {[%clk 00:03:06]} {[%emt 00:01:20]}
Rxb4 {[%clk 00:15:27]} {[%emt 00:00:11]} 43. Rxa6 {[%clk 00:03:13]} {[%emt
00:00:02]} Rb1 {[%clk 00:14:30]} {[%emt 00:01:08]} 44. Rxb1 {[%clk 00:02:35]}
{[%emt 00:00:48]} Rxb1+ {[%clk 00:14:39]} 45. Kf2 {[%clk 00:02:41]} {[%emt
00:00:03]} Nf6 {[%clk 00:14:37]} {[%emt 00:00:13]} 46. Ra8+ {[%clk 00:02:20]}
{[%emt 00:00:30]} Kg7 {[%clk 00:14:45]} {[%emt 00:00:02]} 47. a6 {[%clk
00:02:15]} {[%emt 00:00:16]} g4 {[%clk 00:14:10]} {[%emt 00:00:45]} 48. Bf5
{[%clk 00:01:13]} {[%emt 00:01:12]} Rb2+ {[%clk 00:14:06]} {[%emt 00:00:15]} 49.
Kg1 {[%clk 00:00:38]} {[%emt 00:00:43]} Ra2 {[%clk 00:13:46]} {[%emt 00:00:31]}
50. Rd8 {[%clk 00:00:31]} {[%emt 00:00:17]} Rxa6 {[%clk 00:13:47]} {[%emt
00:00:09]} 51. Be6 {[%clk 00:00:22]} {[%emt 00:00:18]} Ne4 {[%clk 00:12:29]}
{[%emt 00:01:30]} 52. Rd7+ {[%clk 00:00:21]} {[%emt 00:00:10]} Kf6 {[%clk
00:12:34]} {[%emt 00:00:05]} 53. Kf1 {[%clk 00:00:26]} {[%emt 00:00:05]} Ra1+
{[%clk 00:12:21]} {[%emt 00:00:24]} 54. Ke2 {[%clk 00:00:34]} {[%emt 00:00:01]}
Ra2+ {[%clk 00:12:29]} {[%emt 00:00:02]} 55. Ke1 {[%clk 00:00:13]} {[%emt
00:00:30]} h3 {[%clk 00:11:00]} {[%emt 00:01:40]} 56. Rf7+ {[%clk 00:00:15]}
{[%emt 00:00:08]} Ke5 {[%clk 00:11:09]} {[%emt 00:00:01]} 57. gxh3 {[%clk
00:00:20]} {[%emt 00:00:05]} f3 {[%clk 00:11:04]} {[%emt 00:00:15]} 58. Kd1
{[%clk 00:00:11]} {[%emt 00:00:19]} Ra1+ {[%clk 00:10:15]} {[%emt 00:01:00]} 59.
Kc2 {[%clk 00:00:19]} {[%emt 00:00:01]} f2 {[%clk 00:10:24]} {[%emt 00:00:01]}
60. Rf5+ {[%clk 00:00:15]} {[%emt 00:00:15]} Kd4 {[%emt 00:00:26]} 0-1

[Event "FIDE U16 Olympiad_boards_81-124"]
[Site "Eindhoven, Netherlands"]
[Date "2023.08.13"]
[Round "1.18"]
[White "Olenik Campa, Rudi"]
[Black "Kaloki, Hawi"]
[Result "1-0"]
[TimeControl "45min+10sec"]
[WhiteElo "2110"]
[BlackElo "1351"]

1. e4 {[%clk 00:45:17]} {[%emt 00:00:02]} c5 {[%clk 00:45:12]} {[%emt
00:00:08]} 2. Nf3 {[%clk 00:45:26]} {[%emt 00:00:02]} Nc6 {[%clk 00:45:20]}
{[%emt 00:00:02]} 3. Bb5 {[%clk 00:45:32]} {[%emt 00:00:04]} g6 {[%clk
00:45:28]} {[%emt 00:00:02]} 4. O-O {[%clk 00:45:28]} {[%emt 00:00:14]} Bg7
{[%clk 00:45:35]} {[%emt 00:00:03]} 5. Re1 {[%clk 00:44:49]} {[%emt 00:00:49]}
e5 {[%clk 00:45:37]} {[%emt 00:00:08]} 6. c3 {[%clk 00:44:41]} {[%emt
00:00:18]} Nge7 {[%clk 00:40:09]} {[%emt 00:05:38]} 7. d4 {[%clk 00:44:01]}
{[%emt 00:00:50]} cxd4 {[%clk 00:36:27]} {[%emt 00:03:52]} 8. cxd4 {[%clk
00:44:10]} {[%emt 00:00:01]} Nxd4 {[%clk 00:33:53]} {[%emt 00:02:45]} 9. Nxd4
{[%clk 00:44:17]} {[%emt 00:00:03]} exd4 {[%clk 00:34:00]} {[%emt 00:00:02]} 10.
Bf4 {[%clk 00:44:25]} {[%emt 00:00:02]} a6 {[%clk 00:26:08]} {[%emt 00:08:02]}
11. Ba4 {[%clk 00:44:22]} {[%emt 00:00:12]} b5 {[%clk 00:25:52]} {[%emt
00:00:28]} 12. Bb3 {[%clk 00:44:29]} {[%emt 00:00:03]} d6 {[%clk 00:23:08]}
{[%emt 00:02:54]} 13. Nd2 {[%clk 00:44:19]} {[%emt 00:00:19]} O-O {[%clk
00:22:38]} {[%emt 00:00:40]} 14. Nf3 {[%clk 00:44:13]} {[%emt 00:00:16]} Qb6
{[%clk 00:19:02]} {[%emt 00:03:45]} 15. Qd3 {[%clk 00:41:55]} {[%emt 00:02:28]}
Bb7 {[%clk 00:16:37]} {[%emt 00:02:36]} 16. Rad1 {[%clk 00:39:00]} {[%emt
00:03:05]} d5 {[%clk 00:16:28]} {[%emt 00:00:19]} 17. e5 {[%clk 00:38:53]}
{[%emt 00:00:17]} Rfd8 {[%clk 00:13:01]} {[%emt 00:03:36]} 18. Nxd4 {[%clk
00:37:53]} {[%emt 00:01:11]} Rac8 {[%clk 00:08:13]} {[%emt 00:04:58]} 19. h4
{[%clk 00:37:38]} {[%emt 00:00:25]} h6 {[%clk 00:07:26]} {[%emt 00:00:57]} 20.
h5 {[%clk 00:36:13]} {[%emt 00:01:36]} g5 {[%clk 00:07:18]} {[%emt 00:00:18]}
21. Be3 {[%clk 00:35:51]} {[%emt 00:00:32]} Qc7 {[%clk 00:07:04]} {[%emt
00:00:23]} 22. e6 {[%clk 00:35:52]} {[%emt 00:00:09]} f6 {[%clk 00:06:11]}
{[%emt 00:01:03]} 23. Bc2 {[%clk 00:36:00]} {[%emt 00:00:02]} Kf8 {[%clk
00:04:21]} {[%emt 00:01:59]} 24. Qh7 {[%clk 00:36:06]} {[%emt 00:00:04]} Qd6
{[%clk 00:03:15]} {[%emt 00:01:17]} 25. Bg6 {[%clk 00:35:47]} {[%emt 00:00:29]}
Rc7 {[%clk 00:03:02]} {[%emt 00:00:22]} 26. Bf7 {[%clk 00:35:24]} {[%emt
00:00:33]} Rdc8 {[%clk 00:01:03]} {[%emt 00:02:09]} 27. Rd3 {[%clk 00:35:14]}
{[%emt 00:00:21]} Rc4 {[%clk 00:00:40]} {[%emt 00:00:33]} 28. Bd2 {[%clk
00:34:29]} {[%emt 00:00:55]} Qb6 {[%clk 00:00:23]} {[%emt 00:00:27]} 29. Nf5
{[%clk 00:32:55]} {[%emt 00:01:43]} Nxf5 {[%clk 00:00:29]} {[%emt 00:00:05]} 30.
Qxf5 {[%clk 00:33:03]} {[%emt 00:00:01]} Ke7 {[%clk 00:00:21]} {[%emt
00:00:19]} 31. b3 {[%clk 00:33:12]} {[%emt 00:00:01]} Rc2 {[%clk 00:00:21]}
{[%emt 00:00:09]} 32. Bb4+ {[%clk 00:33:21]} {[%emt 00:00:02]} R2c5 {[%clk
00:00:27]} {[%emt 00:00:04]} 33. Rc1 {[%clk 00:31:38]} {[%emt 00:01:53]} a5
{[%clk 00:00:26]} {[%emt 00:00:11]} 34. Rxd5 {[%clk 00:31:18]} {[%emt
00:00:30]} Bxd5 {[%clk 00:00:12]} {[%emt 00:00:24]} 35. Qxd5 {[%clk 00:31:25]}
{[%emt 00:00:03]} Qd6 {[%clk 00:00:13]} {[%emt 00:00:09]} 36. Bxc5 {[%clk
00:31:24]} {[%emt 00:00:10]} 1-0

[Event "FIDE U16 Olympiad_boards_81-124"]
[Site "Eindhoven, Netherlands"]
[Date "2023.08.13"]
[Round "1.19"]
[White "Kuka, Kyle"]
[Black "Skrbec, Leon"]
[Result "0-1"]
[TimeControl "45min+10sec"]
[WhiteElo "1187"]
[BlackElo "2079"]

1. e4 {[%clk 00:45:18]} {[%emt 00:00:02]} c5 {[%clk 00:45:11]} {[%emt
00:00:09]} 2. c3 {[%clk 00:45:24]} {[%emt 00:00:04]} Qa5 {[%clk 00:44:36]}
{[%emt 00:00:45]} 3. Nf3 {[%clk 00:45:13]} {[%emt 00:00:20]} d6 {[%clk
00:44:37]} {[%emt 00:00:10]} 4. h3 {[%clk 00:45:07]} {[%emt 00:00:16]} Nf6
{[%clk 00:43:39]} {[%emt 00:01:08]} 5. Bd3 {[%clk 00:44:25]} {[%emt 00:00:52]}
g6 {[%clk 00:43:18]} {[%emt 00:00:31]} 6. O-O {[%clk 00:44:26]} {[%emt
00:00:09]} Bg7 {[%clk 00:43:23]} {[%emt 00:00:05]} 7. Bc2 {[%clk 00:44:30]}
{[%emt 00:00:06]} O-O {[%clk 00:43:03]} {[%emt 00:00:29]} 8. d4 {[%clk
00:44:35]} {[%emt 00:00:05]} cxd4 {[%clk 00:42:44]} {[%emt 00:00:30]} 9. cxd4
{[%clk 00:44:38]} {[%emt 00:00:06]} d5 {[%clk 00:36:14]} {[%emt 00:06:41]} 10.
e5 {[%clk 00:43:54]} {[%emt 00:00:54]} Ne4 {[%clk 00:36:22]} {[%emt 00:00:01]}
11. Re1 {[%clk 00:43:49]} {[%emt 00:00:15]} Nc6 {[%clk 00:34:40]} {[%emt
00:01:52]} 12. a3 {[%clk 00:42:20]} {[%emt 00:01:39]} Bf5 {[%clk 00:32:56]}
{[%emt 00:01:55]} 13. Nh4 {[%clk 00:42:10]} {[%emt 00:00:18]} Nxd4 {[%clk
00:30:16]} {[%emt 00:02:52]} 14. b4 {[%clk 00:39:11]} {[%emt 00:03:10]} Qc7
{[%clk 00:24:51]} {[%emt 00:05:34]} 15. Ra2 {[%clk 00:35:18]} {[%emt 00:04:01]}
Nxc2 {[%clk 00:18:02]} {[%emt 00:07:01]} 16. Rxc2 {[%clk 00:35:21]} {[%emt
00:00:06]} Qxe5 {[%clk 00:18:01]} {[%emt 00:00:13]} 17. f3 {[%clk 00:34:32]}
{[%emt 00:00:58]} Qd4+ {[%clk 00:18:08]} {[%emt 00:00:03]} 18. Be3 {[%clk
00:33:03]} {[%emt 00:01:38]} Qxd1 {[%clk 00:18:14]} {[%emt 00:00:04]} 19. Rxd1
{[%clk 00:33:11]} {[%emt 00:00:02]} Nd6 {[%clk 00:18:04]} {[%emt 00:00:20]} 20.
Rxd5 {[%clk 00:32:22]} {[%emt 00:01:00]} Bxc2 {[%clk 00:18:09]} {[%emt
00:00:05]} 0-1